[Event "Titled Tuesday Blitz August 22 Early 2023"]
[White "Donchenko, Alexander"]
[Black "Janaszak, Dawid"]
[WhiteFideId "24603295"]
[BlackFideId "1119206"]
[WhiteElo "2941"]
[BlackElo "2494"]
[Result "1-0"]
[Round "1"]
[TimeControl "180+1"]
[Date "2023.08.22"]
[WhiteClock "0:01:02"]
[BlackClock "0:00:19"]
[Board "28"]

1. d4 {[%clk 0:03:00]}  Nf6 {[%clk 0:02:59]} 2. c4 {[%clk 0:03:00]}  g6 {[%clk 0:02:56]} 3. Nc3 {[%clk 0:02:59]}  d5 {[%clk 0:02:57]} 4. cxd5 {[%clk 0:02:58]}  Nxd5 {[%clk 0:02:58]} 5. e4 {[%clk 0:02:59]}  Nxc3 {[%clk 0:02:58]} 6. bxc3 {[%clk 0:03:00]}  Bg7 {[%clk 0:02:59]} 7. Bc4 {[%clk 0:03:00]}  O-O {[%clk 0:02:58]} 8. h3 {[%clk 0:02:49]}  c5 {[%clk 0:02:57]} 9. Nf3 {[%clk 0:02:49]}  Nc6 {[%clk 0:02:56]} 10. Be3 {[%clk 0:02:49]}  b6 {[%clk 0:02:50]} 11. O-O {[%clk 0:02:48]}  Bb7 {[%clk 0:02:47]} 12. Rc1 {[%clk 0:02:47]}  cxd4 {[%clk 0:02:45]} 13. cxd4 {[%clk 0:02:47]}  Na5 {[%clk 0:02:45]} 14. Bd3 {[%clk 0:02:47]}  Rc8 {[%clk 0:02:45]} 15. Qe2 {[%clk 0:02:45]}  Qd6 {[%clk 0:02:42]} 16. Bg5 {[%clk 0:02:34]}  Qa3 {[%clk 0:02:31]} 17. Ba6 {[%clk 0:02:20]}  h6 {[%clk 0:02:21]} 18. Bxb7 {[%clk 0:02:16]}  Nxb7 {[%clk 0:02:22]} 19. Be3 {[%clk 0:02:12]}  Nd6 {[%clk 0:02:15]} 20. e5 {[%clk 0:02:08]}  Nf5 {[%clk 0:02:15]} 21. Bd2 {[%clk 0:01:48]}  Qxa2 {[%clk 0:02:07]} 22. g4 {[%clk 0:01:46]}  Nxd4 {[%clk 0:01:19]} 23. Nxd4 {[%clk 0:01:46]}  Rxc1 {[%clk 0:01:15]} 24. Rxc1 {[%clk 0:01:44]}  Bxe5 {[%clk 0:01:14]} 25. Bxh6 {[%clk 0:01:40]}  Qxe2 {[%clk 0:01:04]} 26. Nxe2 {[%clk 0:01:41]}  Rd8 {[%clk 0:01:04]} 27. Bf4 {[%clk 0:01:39]}  Bf6 {[%clk 0:01:00]} 28. Rc7 {[%clk 0:01:37]}  g5 {[%clk 0:00:55]} 29. Be3 {[%clk 0:01:36]}  Rd1+ {[%clk 0:00:46]} 30. Kg2 {[%clk 0:01:36]}  Ra1 {[%clk 0:00:47]} 31. Ng3 {[%clk 0:01:33]}  b5 {[%clk 0:00:38]} 32. Rxa7 {[%clk 0:01:31]}  Rb1 {[%clk 0:00:36]} 33. Ne4 {[%clk 0:01:23]}  Be5 {[%clk 0:00:36]} 34. Rxe7 {[%clk 0:01:22]}  f6 {[%clk 0:00:36]} 35. Rb7 {[%clk 0:01:08]}  b4 {[%clk 0:00:35]} 36. Nc5 {[%clk 0:01:04]}  Bc3 {[%clk 0:00:31]} 37. Kf3 {[%clk 0:01:03]}  Rh1 {[%clk 0:00:25]} 38. Ne4 {[%clk 0:01:03]}  Rxh3+ {[%clk 0:00:23]} 39. Kg2 {[%clk 0:01:03]}  Rh4 {[%clk 0:00:23]} 40. Nxc3 {[%clk 0:01:03]}  bxc3 {[%clk 0:00:24]} 41. Kf3 {[%clk 0:01:03]}  Rh3+ {[%clk 0:00:23]} 42. Ke4 {[%clk 0:01:02]}  Rh4 {[%clk 0:00:22]} 43. Kf5 {[%clk 0:01:03]}  c2 {[%clk 0:00:19]} 44. Rc7 {[%clk 0:01:02]} 1-0


[Site "https://www.chess.com"]

[Event "Titled Tuesday Blitz August 22 Early 2023"]
[White "Shuvalov, Evgenij"]
[Black "Esipenko, Andrey"]
[WhiteFideId "4187237"]
[BlackFideId "24175439"]
[WhiteElo "2492"]
[BlackElo "2938"]
[Result "0-1"]
[Round "1"]
[TimeControl "180+1"]
[Date "2023.08.22"]
[WhiteClock "0:00:00"]
[BlackClock "0:00:09"]
[Board "29"]

1. d4 {[%clk 0:02:58]}  Nf6 {[%clk 0:02:57]} 2. c4 {[%clk 0:02:57]}  c6 {[%clk 0:02:57]} 3. Nc3 {[%clk 0:02:56]}  d6 {[%clk 0:02:57]} 4. e4 {[%clk 0:02:55]}  Nbd7 {[%clk 0:02:57]} 5. Nf3 {[%clk 0:02:55]}  e5 {[%clk 0:02:56]} 6. Be2 {[%clk 0:02:55]}  g6 {[%clk 0:02:56]} 7. O-O {[%clk 0:02:55]}  Bg7 {[%clk 0:02:57]} 8. Be3 {[%clk 0:02:53]}  O-O {[%clk 0:02:54]} 9. Qc2 {[%clk 0:02:45]}  a5 {[%clk 0:02:38]} 10. Rad1 {[%clk 0:02:44]}  Qe7 {[%clk 0:02:38]} 11. Rfe1 {[%clk 0:02:42]}  exd4 {[%clk 0:02:26]} 12. Nxd4 {[%clk 0:02:41]}  Nc5 {[%clk 0:02:27]} 13. Bf3 {[%clk 0:02:04]}  Nfd7 {[%clk 0:02:22]} 14. Nb3 {[%clk 0:01:55]}  a4 {[%clk 0:01:59]} 15. Nxc5 {[%clk 0:01:54]}  Nxc5 {[%clk 0:02:00]} 16. Bd4 {[%clk 0:01:28]}  Be5 {[%clk 0:01:52]} 17. Qd2 {[%clk 0:01:15]}  Qf6 {[%clk 0:01:50]} 18. Bxe5 {[%clk 0:01:13]}  dxe5 {[%clk 0:01:50]} 19. Qd6 {[%clk 0:01:04]}  Qxd6 {[%clk 0:01:48]} 20. Rxd6 {[%clk 0:01:03]}  Be6 {[%clk 0:01:47]} 21. Be2 {[%clk 0:01:00]}  Ra6 {[%clk 0:01:46]} 22. Red1 {[%clk 0:00:56]}  Rb6 {[%clk 0:01:46]} 23. R1d2 {[%clk 0:00:41]}  Kg7 {[%clk 0:01:35]} 24. f3 {[%clk 0:00:39]}  Kf6 {[%clk 0:01:32]} 25. Kf2 {[%clk 0:00:36]}  Ke7 {[%clk 0:01:32]} 26. Ke3 {[%clk 0:00:34]}  Ra8 {[%clk 0:01:23]} 27. g3 {[%clk 0:00:23]}  Bh3 {[%clk 0:01:18]} 28. f4 {[%clk 0:00:20]}  Rxb2 {[%clk 0:01:17]} 29. Rxb2 {[%clk 0:00:17]}  Kxd6 {[%clk 0:01:17]} 30. g4 {[%clk 0:00:12]}  f5 {[%clk 0:00:41]} 31. Rd2+ {[%clk 0:00:10]}  Ke6 {[%clk 0:00:40]} 32. exf5+ {[%clk 0:00:09]}  gxf5 {[%clk 0:00:40]} 33. g5 {[%clk 0:00:09]}  a3 {[%clk 0:00:32]} 34. Rd1 {[%clk 0:00:05]}  Re8 {[%clk 0:00:17]} 35. Rg1 {[%clk 0:00:05]}  Kf7 {[%clk 0:00:12]} 36. Rg3 {[%clk 0:00:04]}  Bg4 {[%clk 0:00:08]} 37. Bxg4 {[%clk 0:00:03]}  fxg4 {[%clk 0:00:09]} 38. Rxg4 {[%clk 0:00:04]}  exf4+ {[%clk 0:00:10]} 39. Kxf4 {[%clk 0:00:04]}  Re1 {[%clk 0:00:10]} 40. Rg2 {[%clk 0:00:03]}  Rc1 {[%clk 0:00:09]} 41. Ne4 {[%clk 0:00:02]}  Rxc4 {[%clk 0:00:09]} 42. Re2 {[%clk 0:00:00]}  b5 {[%clk 0:00:09]} 0-1


[Site "https://www.chess.com"]

[Event "Titled Tuesday Blitz August 22 Early 2023"]
[White "Zakhartsov, Vladimir"]
[Black "Sanduleac, Vasile"]
[WhiteFideId "4145097"]
[BlackFideId "13900161"]
[WhiteElo "2922"]
[BlackElo "2483"]
[Result "0-1"]
[Round "1"]
[TimeControl "180+1"]
[Date "2023.08.22"]
[WhiteClock "0:00:33"]
[BlackClock "0:01:56"]
[Board "34"]

1. e4 {[%clk 0:02:19]}  g6 {[%clk 0:02:59]} 2. d4 {[%clk 0:02:19]}  Bg7 {[%clk 0:02:59]} 3. Nf3 {[%clk 0:02:18]}  d6 {[%clk 0:02:58]} 4. c3 {[%clk 0:02:18]}  Nf6 {[%clk 0:02:57]} 5. Bd3 {[%clk 0:02:16]}  O-O {[%clk 0:02:57]} 6. O-O {[%clk 0:02:16]}  Nc6 {[%clk 0:02:57]} 7. h3 {[%clk 0:02:14]}  e5 {[%clk 0:02:57]} 8. dxe5 {[%clk 0:02:13]}  Nxe5 {[%clk 0:02:56]} 9. Nxe5 {[%clk 0:02:14]}  dxe5 {[%clk 0:02:56]} 10. a4 {[%clk 0:02:14]}  Nh5 {[%clk 0:02:56]} 11. Na3 {[%clk 0:02:13]}  c6 {[%clk 0:02:54]} 12. Nc4 {[%clk 0:02:13]}  Be6 {[%clk 0:02:51]} 13. b3 {[%clk 0:02:00]}  Nf4 {[%clk 0:02:49]} 14. Bc2 {[%clk 0:01:57]}  Bxc4 {[%clk 0:02:47]} 15. bxc4 {[%clk 0:01:56]}  Ne6 {[%clk 0:02:45]} 16. Qxd8 {[%clk 0:01:48]}  Rfxd8 {[%clk 0:02:44]} 17. Be3 {[%clk 0:01:48]}  Bf8 {[%clk 0:02:43]} 18. Rfb1 {[%clk 0:01:45]}  Rd7 {[%clk 0:02:37]} 19. a5 {[%clk 0:01:43]}  Bc5 {[%clk 0:02:36]} 20. Bc1 {[%clk 0:01:42]}  Rad8 {[%clk 0:02:32]} 21. Ra2 {[%clk 0:01:29]}  Nf4 {[%clk 0:02:26]} 22. Bxf4 {[%clk 0:01:12]}  exf4 {[%clk 0:02:26]} 23. Kf1 {[%clk 0:00:58]}  Rd2 {[%clk 0:02:20]} 24. Bb3 {[%clk 0:00:55]}  Rxa2 {[%clk 0:02:19]} 25. Bxa2 {[%clk 0:00:56]}  Rd2 {[%clk 0:02:19]} 26. Bb3 {[%clk 0:00:55]}  Rxf2+ {[%clk 0:02:18]} 27. Ke1 {[%clk 0:00:55]}  Rxg2 {[%clk 0:02:17]} 28. Bd1 {[%clk 0:00:55]}  f3 {[%clk 0:02:07]} 29. a6 {[%clk 0:00:47]}  b6 {[%clk 0:02:00]} 30. e5 {[%clk 0:00:36]}  Rg1+ {[%clk 0:01:56]} 31. Kd2 {[%clk 0:00:33]}  f2 {[%clk 0:01:56]} 0-1


[Site "https://www.chess.com"]

[Event "Titled Tuesday Blitz August 22 Early 2023"]
[White "Sjugirov, Sanan"]
[Black "Mrithyunjay Mahadevan"]
[WhiteFideId "4189302"]
[BlackFideId "45003521"]
[WhiteElo "2915"]
[BlackElo "2483"]
[Result "1-0"]
[Round "1"]
[TimeControl "180+1"]
[Date "2023.08.22"]
[WhiteClock "0:00:14"]
[BlackClock "0:00:55"]
[Board "36"]

1. c4 {[%clk 0:02:56]}  g6 {[%clk 0:02:58]} 2. d4 {[%clk 0:02:54]}  Nf6 {[%clk 0:02:57]} 3. Nc3 {[%clk 0:02:54]}  d5 {[%clk 0:02:57]} 4. cxd5 {[%clk 0:02:52]}  Nxd5 {[%clk 0:02:58]} 5. e4 {[%clk 0:02:52]}  Nxc3 {[%clk 0:02:58]} 6. bxc3 {[%clk 0:02:53]}  Bg7 {[%clk 0:02:59]} 7. Bc4 {[%clk 0:02:53]}  O-O {[%clk 0:02:58]} 8. Ne2 {[%clk 0:02:53]}  c5 {[%clk 0:02:59]} 9. O-O {[%clk 0:02:53]}  cxd4 {[%clk 0:02:59]} 10. cxd4 {[%clk 0:02:53]}  Nc6 {[%clk 0:02:59]} 11. Be3 {[%clk 0:02:53]}  Bg4 {[%clk 0:02:59]} 12. f3 {[%clk 0:02:53]}  Na5 {[%clk 0:02:58]} 13. Bxf7+ {[%clk 0:02:52]}  Rxf7 {[%clk 0:02:58]} 14. fxg4 {[%clk 0:02:52]}  Rxf1+ {[%clk 0:02:57]} 15. Kxf1 {[%clk 0:02:49]}  Qd7 {[%clk 0:02:57]} 16. h3 {[%clk 0:02:38]}  Qe6 {[%clk 0:02:55]} 17. Qd3 {[%clk 0:02:35]}  Nc4 {[%clk 0:02:51]} 18. Kg1 {[%clk 0:02:27]}  Rd8 {[%clk 0:02:50]} 19. Bf2 {[%clk 0:02:23]}  Nd6 {[%clk 0:02:44]} 20. Ng3 {[%clk 0:02:07]}  a6 {[%clk 0:02:36]} 21. a4 {[%clk 0:01:58]}  Qc4 {[%clk 0:02:28]} 22. Qxc4+ {[%clk 0:01:28]}  Nxc4 {[%clk 0:02:29]} 23. e5 {[%clk 0:01:28]}  Bh6 {[%clk 0:02:17]} 24. Rb1 {[%clk 0:01:22]}  Rd7 {[%clk 0:02:03]} 25. Ne4 {[%clk 0:01:20]}  b6 {[%clk 0:01:37]} 26. g5 {[%clk 0:01:16]}  Bf8 {[%clk 0:01:34]} 27. Rc1 {[%clk 0:01:03]}  Nb2 {[%clk 0:01:33]} 28. Rc8 {[%clk 0:00:58]}  Nxa4 {[%clk 0:01:22]} 29. e6 {[%clk 0:00:55]}  Rb7 {[%clk 0:01:19]} 30. d5 {[%clk 0:00:48]}  Nc5 {[%clk 0:01:19]} 31. Nxc5 {[%clk 0:00:32]}  bxc5 {[%clk 0:01:19]} 32. Bxc5 {[%clk 0:00:32]}  Kg7 {[%clk 0:01:16]} 33. Bd4+ {[%clk 0:00:30]}  Kg8 {[%clk 0:01:17]} 34. Kf2 {[%clk 0:00:24]}  a5 {[%clk 0:01:14]} 35. Ra8 {[%clk 0:00:21]}  Rb5 {[%clk 0:01:07]} 36. d6 {[%clk 0:00:20]}  exd6 {[%clk 0:00:56]} 37. e7 {[%clk 0:00:19]}  Rf5+ {[%clk 0:00:55]} 38. Kg1 {[%clk 0:00:17]}  a4 {[%clk 0:00:55]} 39. e8=Q {[%clk 0:00:16]}  a3 {[%clk 0:00:55]} 40. Qe6+ {[%clk 0:00:15]}  Rf7 {[%clk 0:00:55]} 41. Ra7 {[%clk 0:00:14]}  a2 {[%clk 0:00:55]} 42. Qxf7# {[%clk 0:00:14]} 1-0


[Site "https://www.chess.com"]

[Event "Titled Tuesday Blitz August 22 Early 2023"]
[White "Khamdamova, Afruza"]
[Black "Henriquez Villagra, Cristobal"]
[WhiteFideId "14210444"]
[BlackFideId "3409350"]
[WhiteElo "2480"]
[BlackElo "2912"]
[Result "0-1"]
[Round "1"]
[TimeControl "180+1"]
[Date "2023.08.22"]
[WhiteClock "0:00:00"]
[BlackClock "0:00:04"]
[Board "37"]

1. e4 {[%clk 0:03:00]}  d6 {[%clk 0:02:59]} 2. d4 {[%clk 0:03:00]}  Nf6 {[%clk 0:03:00]} 3. Nc3 {[%clk 0:03:00]}  e5 {[%clk 0:03:00]} 4. Nf3 {[%clk 0:03:00]}  Nbd7 {[%clk 0:03:01]} 5. Bc4 {[%clk 0:03:00]}  Be7 {[%clk 0:03:02]} 6. O-O {[%clk 0:02:59]}  O-O {[%clk 0:03:01]} 7. a4 {[%clk 0:02:59]}  h6 {[%clk 0:03:00]} 8. h3 {[%clk 0:02:57]}  c6 {[%clk 0:03:01]} 9. Ba2 {[%clk 0:02:55]}  Re8 {[%clk 0:02:59]} 10. Re1 {[%clk 0:02:54]}  Bf8 {[%clk 0:02:59]} 11. Be3 {[%clk 0:02:39]}  b6 {[%clk 0:02:57]} 12. dxe5 {[%clk 0:02:23]}  dxe5 {[%clk 0:02:50]} 13. Qe2 {[%clk 0:02:22]}  Nc5 {[%clk 0:02:47]} 14. Rad1 {[%clk 0:02:21]}  Qc7 {[%clk 0:02:47]} 15. Bc1 {[%clk 0:01:59]}  Ba6 {[%clk 0:02:41]} 16. Qe3 {[%clk 0:01:56]}  Ne6 {[%clk 0:02:42]} 17. Nh4 {[%clk 0:01:48]}  Nd4 {[%clk 0:02:42]} 18. Bb1 {[%clk 0:01:25]}  Rad8 {[%clk 0:02:41]} 19. Qg3 {[%clk 0:01:18]}  Kh7 {[%clk 0:02:40]} 20. Nf5 {[%clk 0:01:07]}  c5 {[%clk 0:02:33]} 21. Qh4 {[%clk 0:00:50]}  Qc6 {[%clk 0:02:10]} 22. Ne3 {[%clk 0:00:22]}  Rd6 {[%clk 0:01:52]} 23. Ncd5 {[%clk 0:00:22]}  Ng8 {[%clk 0:01:26]} 24. c3 {[%clk 0:00:21]}  Nb3 {[%clk 0:01:26]} 25. Nf5 {[%clk 0:00:18]}  Rg6 {[%clk 0:01:26]} 26. Kh1 {[%clk 0:00:14]}  Qxa4 {[%clk 0:01:24]} 27. Bc2 {[%clk 0:00:14]}  Qa2 {[%clk 0:01:23]} 28. f4 {[%clk 0:00:08]}  Nxc1 {[%clk 0:01:23]} 29. Rxc1 {[%clk 0:00:08]}  Qxb2 {[%clk 0:01:24]} 30. fxe5 {[%clk 0:00:07]}  Rxe5 {[%clk 0:01:12]} 31. Nf4 {[%clk 0:00:07]}  Nf6 {[%clk 0:00:59]} 32. Nxg6 {[%clk 0:00:07]}  fxg6 {[%clk 0:01:00]} 33. Ne3 {[%clk 0:00:05]}  Qxc3 {[%clk 0:00:58]} 34. Nd5 {[%clk 0:00:05]}  Nxd5 {[%clk 0:00:32]} 35. exd5 {[%clk 0:00:05]}  Rxe1+ {[%clk 0:00:33]} 36. Qxe1 {[%clk 0:00:05]}  Qf6 {[%clk 0:00:31]} 37. Qe8 {[%clk 0:00:03]}  Bd6 {[%clk 0:00:20]} 38. Re1 {[%clk 0:00:03]}  Bb5 {[%clk 0:00:04]} 39. Qxb5 {[%clk 0:00:02]}  Qf4 {[%clk 0:00:04]} 40. Kg1 {[%clk 0:00:01]}  Qh2+ {[%clk 0:00:04]} 41. Kf2 {[%clk 0:00:01]}  Bg3+ {[%clk 0:00:04]} 42. Kf3 {[%clk 0:00:00]}  Bxe1 {[%clk 0:00:04]} 0-1


[Site "https://www.chess.com"]

[Event "Titled Tuesday Blitz August 22 Early 2023"]
[White "Chigaev, Maksim"]
[Black "Fernandez Lopez, Ruben"]
[WhiteFideId "4108116"]
[BlackFideId "24518298"]
[WhiteElo "2908"]
[BlackElo "2479"]
[Result "1-0"]
[Round "1"]
[TimeControl "180+1"]
[Date "2023.08.22"]
[WhiteClock "0:02:15"]
[BlackClock "0:02:25"]
[Board "38"]

1. e4 {[%clk 0:03:00]}  d5 {[%clk 0:02:54]} 2. exd5 {[%clk 0:03:00]}  Nf6 {[%clk 0:02:54]} 3. d4 {[%clk 0:02:58]}  Bg4 {[%clk 0:02:54]} 4. Be2 {[%clk 0:02:58]}  Bxe2 {[%clk 0:02:54]} 5. Qxe2 {[%clk 0:02:59]}  Qxd5 {[%clk 0:02:54]} 6. Nf3 {[%clk 0:03:00]}  Nc6 {[%clk 0:02:55]} 7. O-O {[%clk 0:02:50]}  O-O-O {[%clk 0:02:54]} 8. Rd1 {[%clk 0:02:43]}  e5 {[%clk 0:02:51]} 9. Nc3 {[%clk 0:02:40]}  Qd7 {[%clk 0:02:39]} 10. dxe5 {[%clk 0:02:25]}  Qe8 {[%clk 0:02:25]} 11. Rxd8+ {[%clk 0:02:15]} 1-0


[Site "https://www.chess.com"]

[Event "Titled Tuesday Blitz August 22 Early 2023"]
[White "Mmukka"]
[Black "JeRoma71"]
[WhiteElo "2473"]
[BlackElo "2882"]
[Result "1/2-1/2"]
[Round "1"]
[TimeControl "180+1"]
[Date "2023.08.22"]
[WhiteClock "0:00:13"]
[BlackClock "0:00:52"]
[Board "45"]

1. e4 {[%clk 0:02:58]}  e6 {[%clk 0:02:59]} 2. d4 {[%clk 0:02:58]}  d5 {[%clk 0:03:00]} 3. Nc3 {[%clk 0:02:58]}  Bb4 {[%clk 0:02:59]} 4. Ne2 {[%clk 0:02:58]}  dxe4 {[%clk 0:02:59]} 5. a3 {[%clk 0:02:58]}  Be7 {[%clk 0:02:59]} 6. Nxe4 {[%clk 0:02:58]}  Nf6 {[%clk 0:03:00]} 7. Nxf6+ {[%clk 0:02:58]}  Bxf6 {[%clk 0:03:00]} 8. Be3 {[%clk 0:02:58]}  b6 {[%clk 0:03:00]} 9. Qd2 {[%clk 0:02:58]}  Bb7 {[%clk 0:03:00]} 10. O-O-O {[%clk 0:02:58]}  Nc6 {[%clk 0:02:57]} 11. Ng3 {[%clk 0:02:52]}  Ne7 {[%clk 0:02:54]} 12. Nh5 {[%clk 0:02:42]}  Nf5 {[%clk 0:02:53]} 13. Nxf6+ {[%clk 0:02:38]}  gxf6 {[%clk 0:02:47]} 14. Bb5+ {[%clk 0:02:17]}  c6 {[%clk 0:02:46]} 15. Bd3 {[%clk 0:02:14]}  Nxe3 {[%clk 0:02:45]} 16. Qxe3 {[%clk 0:02:05]}  Qd5 {[%clk 0:02:30]} 17. Be4 {[%clk 0:01:51]}  Qa2 {[%clk 0:02:26]} 18. Qc3 {[%clk 0:01:51]}  Rc8 {[%clk 0:02:14]} 19. Rhe1 {[%clk 0:01:44]}  b5 {[%clk 0:02:03]} 20. Kd2 {[%clk 0:01:42]}  Qc4 {[%clk 0:02:02]} 21. Qxc4 {[%clk 0:01:42]}  bxc4 {[%clk 0:02:02]} 22. Kc3 {[%clk 0:01:43]}  Ba6 {[%clk 0:02:02]} 23. f4 {[%clk 0:01:30]}  Kd7 {[%clk 0:01:58]} 24. g3 {[%clk 0:01:25]}  h5 {[%clk 0:01:57]} 25. Re3 {[%clk 0:01:19]}  f5 {[%clk 0:01:57]} 26. Bg2 {[%clk 0:01:17]}  h4 {[%clk 0:01:57]} 27. Bf1 {[%clk 0:01:08]}  hxg3 {[%clk 0:01:52]} 28. hxg3 {[%clk 0:01:08]}  Rh2 {[%clk 0:01:53]} 29. Re2 {[%clk 0:00:52]}  Rh1 {[%clk 0:01:46]} 30. Rde1 {[%clk 0:00:28]}  Rg8 {[%clk 0:01:44]} 31. Re3 {[%clk 0:00:28]}  Bb5 {[%clk 0:01:43]} 32. Kb4 {[%clk 0:00:19]}  Rg1 {[%clk 0:01:33]} 33. Bxc4 {[%clk 0:00:18]}  Rxe1 {[%clk 0:01:30]} 34. Rxe1 {[%clk 0:00:19]}  Bxc4 {[%clk 0:01:29]} 35. Kxc4 {[%clk 0:00:20]}  Rxg3 {[%clk 0:01:29]} 36. Rf1 {[%clk 0:00:17]}  Rg2 {[%clk 0:01:28]} 37. Kd3 {[%clk 0:00:16]}  a5 {[%clk 0:01:28]} 38. a4 {[%clk 0:00:16]}  Kd6 {[%clk 0:01:26]} 39. Re1 {[%clk 0:00:09]}  Rf2 {[%clk 0:01:26]} 40. Re5 {[%clk 0:00:09]}  Rf3+ {[%clk 0:01:25]} 41. Kc4 {[%clk 0:00:08]}  Rxf4 {[%clk 0:01:25]} 42. Rxa5 {[%clk 0:00:09]}  f6 {[%clk 0:01:22]} 43. Ra8 {[%clk 0:00:09]}  e5 {[%clk 0:01:21]} 44. c3 {[%clk 0:00:08]}  Rf1 {[%clk 0:01:21]} 45. a5 {[%clk 0:00:08]}  f4 {[%clk 0:01:21]} 46. a6 {[%clk 0:00:08]}  Ra1 {[%clk 0:01:21]} 47. a7 {[%clk 0:00:08]}  Kc7 {[%clk 0:01:21]} 48. Rf8 {[%clk 0:00:06]}  Rxa7 {[%clk 0:01:19]} 49. Rxf6 {[%clk 0:00:06]}  exd4 {[%clk 0:01:11]} 50. Kxd4 {[%clk 0:00:06]}  Ra2 {[%clk 0:01:07]} 51. Rxf4 {[%clk 0:00:06]}  Rxb2 {[%clk 0:01:07]} 52. Rf7+ {[%clk 0:00:07]}  Kb6 {[%clk 0:01:06]} 53. Kc4 {[%clk 0:00:07]}  Rh2 {[%clk 0:01:05]} 54. Rf4 {[%clk 0:00:08]}  Rh5 {[%clk 0:01:05]} 55. Rg4 {[%clk 0:00:08]}  Rc5+ {[%clk 0:01:04]} 56. Kb4 {[%clk 0:00:08]}  Rf5 {[%clk 0:01:05]} 57. Kc4 {[%clk 0:00:08]}  Ra5 {[%clk 0:01:05]} 58. Rg6 {[%clk 0:00:06]}  Ra4+ {[%clk 0:01:04]} 59. Kb3 {[%clk 0:00:06]}  Rf4 {[%clk 0:01:04]} 60. Rg5 {[%clk 0:00:07]}  Ka6 {[%clk 0:01:03]} 61. Rg6 {[%clk 0:00:07]}  Kb5 {[%clk 0:01:03]} 62. Rg5+ {[%clk 0:00:08]}  c5 {[%clk 0:01:03]} 63. Rg8 {[%clk 0:00:08]}  c4+ {[%clk 0:01:01]} 64. Ka3 {[%clk 0:00:08]}  Rf1 {[%clk 0:01:00]} 65. Rg5+ {[%clk 0:00:08]}  Kb6 {[%clk 0:00:58]} 66. Kb4 {[%clk 0:00:08]}  Rf4 {[%clk 0:00:58]} 67. Rg6+ {[%clk 0:00:08]}  Kc7 {[%clk 0:00:58]} 68. Rg5 {[%clk 0:00:09]}  Kb6 {[%clk 0:00:58]} 69. Rc5 {[%clk 0:00:10]}  Rf1 {[%clk 0:00:56]} 70. Rxc4 {[%clk 0:00:10]}  Rb1+ {[%clk 0:00:56]} 71. Ka4 {[%clk 0:00:11]}  Ra1+ {[%clk 0:00:55]} 72. Kb3 {[%clk 0:00:11]}  Kb5 {[%clk 0:00:54]} 73. Rb4+ {[%clk 0:00:11]}  Kc5 {[%clk 0:00:54]} 74. Kc2 {[%clk 0:00:11]}  Ra2+ {[%clk 0:00:53]} 75. Kb3 {[%clk 0:00:12]}  Ra1 {[%clk 0:00:53]} 76. Rh4 {[%clk 0:00:12]}  Rb1+ {[%clk 0:00:53]} 77. Kc2 {[%clk 0:00:13]}  Ra1 {[%clk 0:00:52]} 78. Kb3 {[%clk 0:00:13]}  Rb1+ {[%clk 0:00:52]} 79. Kc2 {[%clk 0:00:14]}  Ra1 {[%clk 0:00:52]} 80. Kb3 {[%clk 0:00:13]} 1/2-1/2


[Site "https://www.chess.com"]

[Event "Titled Tuesday Blitz August 22 Early 2023"]
[White "Jones, Gawain C B"]
[Black "Reprintsev, Alexander"]
[WhiteFideId "409561"]
[BlackFideId "14100541"]
[WhiteElo "2877"]
[BlackElo "2473"]
[Result "1-0"]
[Round "1"]
[TimeControl "180+1"]
[Date "2023.08.22"]
[WhiteClock "0:00:02"]
[BlackClock "0:00:00"]
[Board "46"]

1. Nf3 {[%clk 0:03:00]}  d5 {[%clk 0:02:46]} 2. c4 {[%clk 0:03:01]}  dxc4 {[%clk 0:02:45]} 3. e3 {[%clk 0:02:56]}  Nc6 {[%clk 0:02:40]} 4. Bxc4 {[%clk 0:02:56]}  e5 {[%clk 0:02:39]} 5. O-O {[%clk 0:02:53]}  e4 {[%clk 0:02:37]} 6. Nd4 {[%clk 0:02:50]}  Nxd4 {[%clk 0:02:35]} 7. exd4 {[%clk 0:02:51]}  Nf6 {[%clk 0:02:28]} 8. Qb3 {[%clk 0:02:50]}  Qd7 {[%clk 0:02:28]} 9. d3 {[%clk 0:02:49]}  exd3 {[%clk 0:02:22]} 10. Bg5 {[%clk 0:02:29]}  Bd6 {[%clk 0:02:10]} 11. Re1+ {[%clk 0:02:28]}  Kf8 {[%clk 0:02:10]} 12. Qxd3 {[%clk 0:02:07]}  Qf5 {[%clk 0:02:05]} 13. Bxf6 {[%clk 0:01:55]}  Qxd3 {[%clk 0:01:57]} 14. Bxg7+ {[%clk 0:01:55]}  Kxg7 {[%clk 0:01:57]} 15. Bxd3 {[%clk 0:01:55]}  Rd8 {[%clk 0:01:53]} 16. Nc3 {[%clk 0:01:50]}  Bb4 {[%clk 0:01:51]} 17. a3 {[%clk 0:01:43]}  Rxd4 {[%clk 0:01:49]} 18. axb4 {[%clk 0:01:43]}  Rxd3 {[%clk 0:01:48]} 19. Re8 {[%clk 0:01:42]}  b6 {[%clk 0:01:44]} 20. h4 {[%clk 0:01:30]}  Rd4 {[%clk 0:01:36]} 21. Nb5 {[%clk 0:01:25]}  Rxb4 {[%clk 0:01:29]} 22. Nxc7 {[%clk 0:01:25]}  Rb8 {[%clk 0:01:29]} 23. Na6 {[%clk 0:01:24]}  Bxa6 {[%clk 0:01:27]} 24. Rxb8 {[%clk 0:01:24]}  Bd3 {[%clk 0:01:23]} 25. Ra3 {[%clk 0:01:10]}  Bg6 {[%clk 0:01:21]} 26. Rxa7 {[%clk 0:01:09]}  Rxb2 {[%clk 0:01:18]} 27. Rab7 {[%clk 0:01:01]}  Rb4 {[%clk 0:01:14]} 28. h5 {[%clk 0:00:48]}  Bxh5 {[%clk 0:01:13]} 29. Rxb6 {[%clk 0:00:48]}  Rc4 {[%clk 0:01:11]} 30. f3 {[%clk 0:00:44]}  Bg6 {[%clk 0:01:10]} 31. Kf2 {[%clk 0:00:45]}  h5 {[%clk 0:00:59]} 32. Rb4 {[%clk 0:00:44]}  Rc1 {[%clk 0:00:58]} 33. R8b7 {[%clk 0:00:39]}  Ra1 {[%clk 0:00:57]} 34. Rf4 {[%clk 0:00:38]}  Ra2+ {[%clk 0:00:56]} 35. Kg3 {[%clk 0:00:39]}  Ra5 {[%clk 0:00:56]} 36. Rc4 {[%clk 0:00:34]}  Ra1 {[%clk 0:00:54]} 37. Kh2 {[%clk 0:00:25]}  Ra2 {[%clk 0:00:54]} 38. Rcb4 {[%clk 0:00:25]}  Ra1 {[%clk 0:00:53]} 39. R4b5 {[%clk 0:00:23]}  Ra2 {[%clk 0:00:53]} 40. f4 {[%clk 0:00:20]}  Rf2 {[%clk 0:00:48]} 41. Kg3 {[%clk 0:00:19]}  Rf1 {[%clk 0:00:48]} 42. Rb4 {[%clk 0:00:17]}  Re1 {[%clk 0:00:43]} 43. R7b5 {[%clk 0:00:16]}  Rf1 {[%clk 0:00:36]} 44. Rg5 {[%clk 0:00:15]}  Kh6 {[%clk 0:00:31]} 45. Kh2 {[%clk 0:00:16]}  Kg7 {[%clk 0:00:18]} 46. g3 {[%clk 0:00:13]}  Kh6 {[%clk 0:00:17]} 47. Kg2 {[%clk 0:00:13]}  Ra1 {[%clk 0:00:13]} 48. Re5 {[%clk 0:00:13]}  Ra2+ {[%clk 0:00:12]} 49. Kf3 {[%clk 0:00:13]}  Ra3+ {[%clk 0:00:13]} 50. Re3 {[%clk 0:00:13]}  Ra1 {[%clk 0:00:12]} 51. Rb6 {[%clk 0:00:13]}  Kg7 {[%clk 0:00:11]} 52. Re5 {[%clk 0:00:13]}  Rf1+ {[%clk 0:00:09]} 53. Kg2 {[%clk 0:00:14]}  Ra1 {[%clk 0:00:08]} 54. f5 {[%clk 0:00:14]}  Bh7 {[%clk 0:00:08]} 55. Kf2 {[%clk 0:00:07]}  Ra3 {[%clk 0:00:07]} 56. Rc5 {[%clk 0:00:06]}  Rd3 {[%clk 0:00:07]} 57. Kg2 {[%clk 0:00:03]}  Ra3 {[%clk 0:00:06]} 58. Kf2 {[%clk 0:00:03]}  Rd3 {[%clk 0:00:06]} 59. f6+ {[%clk 0:00:03]}  Kg6 {[%clk 0:00:05]} 60. Rc7 {[%clk 0:00:03]}  Rd5 {[%clk 0:00:04]} 61. Ke3 {[%clk 0:00:03]}  Rg5 {[%clk 0:00:03]} 62. Kd4 {[%clk 0:00:01]}  Rxg3 {[%clk 0:00:03]} 63. Ke5 {[%clk 0:00:02]}  Re3+ {[%clk 0:00:03]} 64. Kf4 {[%clk 0:00:02]}  Re1 {[%clk 0:00:03]} 65. Rcc6 {[%clk 0:00:02]}  h4 {[%clk 0:00:02]} 66. Kg4 {[%clk 0:00:02]}  Re4+ {[%clk 0:00:02]} 67. Kh3 {[%clk 0:00:03]}  Ra4 {[%clk 0:00:02]} 68. Rc5 {[%clk 0:00:03]}  Rd4 {[%clk 0:00:00]} 69. Rc1 {[%clk 0:00:02]} 1-0


[Site "https://www.chess.com"]